bitfinex-derivatives/quotes_ETHF0:USTF0_20250427
["timestamp","ask_amount","ask_price","bid_price","bid_amount"]
[1745776239131,4.31775,1801.3,1801.2,1.74]
[1745776240229,4.31775,1801.3,1801.2,5.462]
[1745776241130,4.31775,1801.3,1801.2,3.722]
[1745776241334,5.12865,1801.3,1801.2,3.722]
[1745776242926,5.12865,1801.3,1801.2,5.4168]
[1745776244431,4.0187,1801.3,1801.2,5.4168]
[1745776244934,5.6947,1801.3,1801.2,5.4168]
[1745776245235,6.80465,1801.3,1801.2,5.4168]
[1745776245734,5.6947,1801.3,1801.2,5.4168]
[1745776245935,5.6947,1801.3,1801.2,6.52681]
[1745776246234,6.80465,1801.3,1801.2,3.722]
[1745776246536,6.89380194,1801.3,1801.2,3.722]
[1745776247135,6.89380194,1801.3,1801.0,3.59819]
[1745776247136,1.11003,1801.2,1801.0,3.59819]
[1745776247437,2.80643,1801.2,1801.0,3.59819]
[1745776247639,3.60503,1801.2,1801.0,3.59819]
[1745776248236,3.60503,1801.2,1801.0,7.32019]
[1745776248831,3.60503,1801.2,1801.1,1.11007]
[1745776249030,2.495,1801.2,1801.1,1.11007]
[1745776249334,3.2078,1801.3,1801.2,1.11001]
[1745776250138,3.2078,1801.3,1801.2,4.83201]
[1745776250536,1.1099,1801.4,1801.2,4.83201]
[1745776250738,1.1099,1801.4,1801.3,1.6511]
[1745776251035,2.72679,1801.4,1801.3,1.6511]
[1745776251338,2.72679,1801.4,1801.3,6.9681]
[1745776251639,1.6169,1801.4,1801.3,6.9681]
[1745776251840,2.72679,1801.4,1801.3,6.9681]
[1745776252340,1.6169,1801.4,1801.3,6.9681]
[1745776252637,2.72679,1801.4,1801.3,6.9681]
[1745776256039,5.93459,1801.4,1801.3,6.9681]
[1745776256638,2.72679,1801.4,1801.3,6.9681]
[1745776257137,5.93459,1801.4,1801.3,6.9681]
[1745776259143,1.10999,1801.3,1801.1,4.33366]
[1745776259441,1.10999,1801.3,1801.2,1.6004]
[1745776260238,1.10999,1801.3,1801.2,5.3224]
[1745776260541,1.10999,1801.3,1801.2,3.722]
[1745776260739,1.11013,1801.0,1800.9,3.3079]
[1745776260942,1.11013,1801.0,1800.9,2.4768]
[1745776261442,2.72983,1801.0,1800.9,2.4768]
[1745776264048,1.6197,1801.0,1800.9,3.587]
[1745776264240,1.6197,1801.0,1800.9,7.309]
[1745776264438,2.72983,1801.0,1800.9,6.1988]
[1745776267245,2.72983,1801.0,1800.9,7.309]
[1745776267550,1.11012,1801.1,1800.9,7.309]
[1745776267751,3.55363,1801.2,1801.0,1.6965]
[1745776268652,3.55361,1801.2,1801.0,1.6965]
[1745776268846,3.55361,1801.2,1801.0,2.8066]
[1745776269056,3.55361,1801.2,1801.1,0.8089]
[1745776269354,3.55361,1801.2,1801.1,2.5054]
[1745776272357,2.53275643,1801.2,1801.1,1.6965]
[1745776272558,4.41731,1801.2,1801.1,1.6965]
[1745776273257,4.41731,1801.2,1801.0,1.9175]
[1745776273559,1.6924,1801.1,1801.0,3.5847]
[1745776274257,2.80247,1801.1,1801.0,3.5847]
[1745776274449,1.6924,1801.1,1801.0,1.1101]
[1745776275953,1.6924,1801.1,1800.9,3.62976]
[1745776276257,1.6924,1801.1,1801.0,1.11013]
[1745776276459,1.6924,1801.1,1801.0,2.78803]
[1745776276658,1.6924,1801.1,1801.0,1.6779]
[1745776277855,1.6924,1801.1,1801.0,2.78803]
[1745776278056,2.80247,1801.1,1801.0,2.78803]
[1745776278261,2.80247,1801.1,1801.0,1.6779]
[1745776278664,1.11013,1801.0,1800.9,0.8524]
[1745776278865,2.67953,1801.0,1800.9,0.8524]
[1745776279266,2.67953,1801.0,1800.9,5.6846]
[1745776280760,14.45833,1801.0,1800.9,1.05770001]
[1745776280961,14.54750529,1801.0,1800.9,1.05770001]
[1745776281160,1.11038,1800.6,1800.5,5.848]
[1745776281460,1.11038,1800.6,1800.4,2.7196]
[1745776281863,3.58868,1800.6,1800.5,1.6563]
[1745776282063,4.31816,1800.7,1800.5,2.76674]
[1745776282467,4.31816,1800.7,1800.6,2.4668]
[1745776283364,5.98226,1800.7,1800.6,2.4668]
[1745776283964,4.8719,1800.7,1800.6,2.4668]
[1745776284565,5.98222,1800.7,1800.6,2.4668]
[1745776284772,2.77442,1800.7,1800.6,2.4668]
[1745776284971,5.98222,1800.7,1800.6,2.4668]
[1745776285169,3.2078,1800.7,1800.6,3.57718]
[1745776285365,5.2887,1800.9,1800.6,2.4668]
[1745776285668,5.2887,1800.9,1800.8,1.11026]
[1745776285865,6.1186,1800.9,1800.7,3.55898]
[1745776286065,6.1186,1800.9,1800.8,1.6586]
[1745776286265,3.572,1800.9,1800.8,2.76886]
[1745776287069,3.572,1800.9,1800.8,6.49086]
[1745776287874,4.6822,1800.9,1800.8,5.3806]
[1745776288575,7.1035,1800.9,1800.8,5.3806]
[1745776295075,7.1035,1800.9,1800.8,3.722]
[1745776295272,8.0008775,1800.9,1800.8,3.722]
[1745776296180,1.11032,1800.7,1800.6,1.6654]
[1745776299075,1.11032,1800.7,1800.6,2.77578]
[1745776299274,1.11032,1800.7,1800.6,1.6654]
[1745776301679,1.11032,1800.7,1800.6,2.77578]
[1745776301885,1.11032,1800.7,1800.6,1.6654]
[1745776302188,1.11032,1800.7,1800.6,2.77578]
[1745776302483,1.11032,1800.7,1800.6,1.6654]
[1745776304482,1.11032,1800.7,1800.6,2.77578]
[1745776304889,4.31806,1800.8,1800.6,2.77578]
[1745776305188,4.31806,1800.8,1800.7,3.3416]
[1745776305680,5.99696,1800.8,1800.7,3.3416]
[1745776306589,5.99696,1800.8,1800.7,4.45192]
[1745776306984,2.78916,1800.8,1800.7,4.45192]
[1745776307681,2.78916,1800.8,1800.7,3.3416]
[1745776307881,2.78916,1800.8,1800.7,4.45192]
[1745776308291,5.99696,1800.8,1800.7,4.45192]
[1745776308890,4.8867,1800.8,1800.7,4.45192]
[1745776309487,3.2078,1800.8,1800.7,4.45192]
[1745776309683,3.572,1800.9,1800.8,1.11026]
[1745776309884,6.7798,1800.9,1800.8,2.72066]
[1745776310084,6.7798,1800.9,1800.8,1.6104]
[1745776310589,6.7798,1800.9,1800.8,2.72066]
[1745776312591,3.572,1800.9,1800.8,2.72066]
[1745776312888,6.7798,1800.9,1800.8,2.72066]
[1745776313488,7.89,1800.9,1800.8,1.6104]
[1745776319392,1.11029,1800.8,1800.6,1.11035]
[1745776319589,7.89004,1800.9,1800.7,1.94532]
[1745776319787,7.89004,1800.9,1800.8,1.6905]
[1745776322494,1.11036,1800.7,1800.5,1.11042]
[1745776322691,2.4835,1800.6,1800.5,2.78762]
[1745776322896,3.59388,1800.6,1800.5,2.78762]
[1745776323089,3.59388,1800.6,1800.5,6.50962]
[1745776323998,2.4835,1800.6,1800.5,6.50962]
[1745776324400,3.59388,1800.6,1800.5,6.50962]
[1745776324891,3.59388,1800.6,1800.5,5.3992]
[1745776326693,2.4835,1800.6,1800.5,6.50964]
[1745776326902,1.11037,1800.7,1800.6,1.11038]
[1745776327088,1.11037,1800.7,1800.6,2.72778]
[1745776327287,1.11037,1800.7,1800.6,1.6174]
[1745776327699,4.2673,1800.8,1800.6,2.72778]
[1745776327915,4.2673,1800.8,1800.7,0.8567]
[1745776328196,3.2078,1800.9,1800.8,1.11026]
[1745776328700,3.2078,1800.9,1800.8,2.71626]
[1745776330499,0.801,1801.2,1801.1,1.11007]
[1745776330801,6.1001,1801.4,1801.1,3.2078]
[1745776330994,6.1001,1801.4,1801.3,1.10995]
[1745776331195,6.18924795,1801.4,1801.2,4.42737]
[1745776331500,7.21,1801.4,1801.2,4.42737]
[1745776332200,6.1001,1801.4,1801.2,4.42737]
[1745776332404,7.21001,1801.4,1801.2,4.42737]
[1745776332603,2.5648,1801.3,1801.2,4.42737]
[1745776336907,2.5648,1801.3,1800.9,3.2078]
[1745776337102,1.68146046,1801.2,1801.1,1.11007]
[1745776337406,1.5923,1801.2,1801.1,1.11007]
[1745776338101,0.8695,1801.3,1801.2,1.11001]
[1745776338403,0.8695,1801.3,1801.1,1.96942]
[1745776338606,1.5923,1801.4,1801.2,0.79]
[1745776338903,1.5923,1801.4,1801.3,1.6413]
[1745776339095,1.68144564,1801.4,1801.3,1.6413]
[1745776339302,1.5923,1801.4,1801.3,1.6413]
[1745776339708,1.68144541,1801.4,1801.3,1.6413]
[1745776339999,2.79133541,1801.4,1801.3,1.6413]
[1745776340202,2.79133512,1801.4,1801.3,1.6413]
[1745776341499,1.68144512,1801.4,1801.3,1.6413]
[1745776341698,1.5923,1801.4,1801.3,1.6413]
[1745776341907,2.70219,1801.4,1801.3,1.6413]
[1745776345506,3.57,1801.7,1801.3,4.8491]
[1745776345712,3.57,1801.7,1801.6,1.10976]
[1745776346410,3.57,1801.7,1801.5,3.54518]
[1745776346612,1.658,1801.8,1801.7,1.1097]
[1745776347219,1.658,1801.8,1801.7,0.8283]
[1745776347622,2.76764,1801.8,1801.7,2.4017]
[1745776349022,1.658,1801.8,1801.7,2.4017]
[1745776349320,6.3486,1801.9,1801.7,3.5114]
[1745776349509,6.3486,1801.9,1801.8,1.571]
[1745776349713,6.43771805,1801.9,1801.8,1.571]
[1745776350517,8.01441805,1801.9,1801.8,1.571]
[1745776350717,8.01442145,1801.9,1801.8,1.571]
[1745776353621,7.9253,1801.9,1801.8,1.571]
[1745776353823,8.01442122,1801.9,1801.8,1.571]
[1745776355217,7.9253,1801.9,1801.8,1.571]
[1745776355523,8.0144216,1801.9,1801.8,1.571]
[1745776361425,8.01441887,1801.9,1801.8,1.571]
[1745776362828,7.9253,1801.9,1801.8,1.571]
[1745776363025,8.01441849,1801.9,1801.8,1.571]
[1745776365930,8.01442004,1801.9,1801.8,1.571]
[1745776368626,6.90482004,1801.9,1801.5,4.0698]
[1745776368826,1.10975,1801.7,1801.5,5.1796]
[1745776369026,1.68112004,1801.8,1801.6,2.72266]
[1745776369027,1.592,1801.8,1801.6,2.72266]
[1745776369232,2.70164,1801.8,1801.7,1.6129]
[1745776369432,2.79076463,1801.8,1801.7,1.6129]
[1745776370523,2.79076498,1801.8,1801.7,1.6129]
[1745776372238,2.79076436,1801.8,1801.7,1.6129]
[1745776373038,2.70164,1801.8,1801.7,1.6129]
[1745776373235,2.79076411,1801.8,1801.7,1.6129]
[1745776373437,1.10976,1801.6,1801.5,0.862]
[1745776373634,1.10976,1801.6,1801.4,0.7933]
[1745776373635,1.10983,1801.5,1801.4,2.3848]
[1745776373828,3.65823,1801.5,1801.4,2.3848]
[1745776374032,3.65823,1801.5,1801.3,4.0393]
[1745776374033,1.10989,1801.4,1801.3,4.0393]
[1745776374338,2.78869,1801.4,1801.3,4.0393]
[1745776375029,2.78869,1801.4,1801.3,5.6308]
[1745776375231,2.78869,1801.4,1801.3,9.3528]
[1745776376130,2.78869,1801.4,1801.3,6.9298]
[1745776376338,1.10995,1801.3,1801.2,5.848]
[1745776376642,3.65235,1801.3,1801.2,5.848]
[1745776376832,3.74150458,1801.3,1801.2,5.848]
[1745776377032,7.31050458,1801.3,1801.2,5.848]
[1745776380842,7.31050458,1801.3,1801.0,1.6626]
[1745776380843,1.11007,1801.1,1801.0,1.6626]
[1745776381442,2.72157,1801.1,1801.0,1.6626]
[1745776385538,1.11006,1801.2,1801.0,1.6626]
[1745776385945,1.11001,1801.2,1801.0,2.7727]
[1745776386247,1.11001,1801.2,1801.0,6.4947]
[1745776386445,1.11001,1801.2,1801.1,1.7032]
[1745776390252,4.67798,1801.3,1801.1,6.02105]
[1745776390453,1.10992,1801.4,1801.2,1.90531]
[1745776390750,1.10992,1801.4,1801.3,2.5604]
[1745776391145,1.10992,1801.4,1801.3,6.2824]
[1745776391552,2.82992,1801.4,1801.3,6.2824]
[1745776391750,1.10992,1801.4,1801.3,6.2824]
[1745776393454,1.10992,1801.4,1801.3,9.4902]
[1745776393950,1.10987,1801.5,1801.3,6.2824]
[1745776394255,1.10987,1801.5,1801.4,1.7394]
[1745776394456,1.19901125,1801.5,1801.4,1.7394]
[1745776394754,2.77571125,1801.5,1801.4,1.7394]
[1745776397446,2.77570901,1801.5,1801.4,1.7394]
[1745776398458,1.10989,1801.4,1801.3,4.0591]
[1745776398655,2.75449,1801.4,1801.3,4.0591]
[1745776398859,1.6446,1801.4,1801.3,6.87915]
[1745776399157,1.6446,1801.4,1801.3,10.60115]
[1745776399858,2.75449,1801.4,1801.3,9.4912]
[1745776403364,2.75449,1801.4,1801.3,6.9298]
[1745776404362,2.75449,1801.4,1801.3,3.2078]
[1745776405358,1.11001,1801.2,1801.1,4.8507]
[1745776406069,2.69111,1801.2,1801.1,4.8507]
[1745776406256,1.11001,1801.2,1801.1,4.8507]
[1745776411170,1.11001,1801.2,1801.1,1.6429]
[1745776411369,1.11001,1801.2,1801.1,4.8507]
[1745776411777,1.11001,1801.2,1801.1,5.96077]
[1745776412772,1.11001,1801.2,1801.1,4.8507]
[1745776413883,5.1921,1801.3,1801.1,5.96075]
[1745776414177,5.1921,1801.3,1801.2,1.6942]
[1745776415573,5.1921,1801.3,1801.2,2.80421]
[1745776418489,6.30205,1801.3,1801.1,4.31782]
[1745776418673,2.4197,1801.2,1801.1,4.31782]
[1745776419385,2.4197,1801.2,1801.1,6.01122]
[1745776421483,3.52971,1801.2,1801.1,3.2078]
[1745776421683,1.11007,1801.1,1801.0,4.83213]
[1745776421886,3.55357,1801.1,1801.0,4.83213]
[1745776422184,2.4435,1801.1,1801.0,1.11013]
[1745776423886,3.55358,1801.1,1800.9,6.02205]
[1745776424793,2.4435,1801.1,1800.7,4.8326]
[1745776425090,2.79008,1801.0,1800.8,1.11024]
[1745776425291,1.6799,1800.9,1800.8,1.6078]
[1745776425479,1.11018,1801.0,1800.8,2.71806]
[1745776425786,3.64091,1801.1,1800.9,2.718]
[1745776425986,3.64091,1801.1,1801.0,2.4485]
[1745776426185,3.73007408,1801.1,1801.0,1.6078]
[1745776427788,3.73007428,1801.1,1801.0,1.6078]
[1745776428388,1.11016,1801.0,1800.8,1.6938]
[1745776428581,2.77696,1801.0,1800.9,1.6165]
[1745776430786,10.2348,1801.0,1800.7,3.2078]
[1745776430985,1.11032,1800.7,1800.6,5.848]
[1745776431285,1.11043,1800.6,1800.5,1.6484]
[1745776431585,3.51063,1800.6,1800.5,1.6484]
[1745776439992,2.70003,1800.6,1800.5,1.6484]
[1745776440292,1.11043,1800.6,1800.5,1.6484]
[1745776441184,4.67836,1800.7,1800.5,1.6484]
[1745776441687,1.11038,1800.6,1800.5,2.75881]
[1745776442092,1.11038,1800.6,1800.5,6.48081]
[1745776442293,1.11038,1800.6,1800.5,5.3704]
[1745776444097,1.11038,1800.6,1800.5,6.48084]
[1745776444997,1.11038,1800.6,1800.5,5.3704]
[1745776445895,3.568,1800.7,1800.5,6.48079]
[1745776446090,3.568,1800.7,1800.6,1.7335]
[1745776446394,3.568,1800.7,1800.6,4.9413]
[1745776446590,2.77732,1800.9,1800.6,6.05168]
[1745776446888,4.67822,1800.9,1800.7,4.48951]
[1745776447095,3.568,1800.9,1800.8,2.84376]
[1745776447696,3.568,1800.9,1800.8,1.7335]
[1745776448089,4.6782,1800.9,1800.8,1.7335]
[1745776448291,6.3271,1800.9,1800.8,5.4555]
[1745776448990,1.6489,1800.9,1800.8,6.56576]
[1745776449398,2.7591,1800.9,1800.8,5.4555]
[1745776450096,1.6489,1800.9,1800.8,5.4555]
[1745776450297,1.6489,1800.9,1800.8,1.7335]
[1745776450985,1.6489,1800.9,1800.8,2.84376]
[1745776453903,2.7591,1800.9,1800.8,1.7335]
[1745776455501,1.6489,1800.9,1800.8,1.7335]
[1745776456003,2.7591,1800.9,1800.8,1.7335]
[1745776457591,1.6489,1800.9,1800.8,2.84376]
[1745776457794,1.92308,1801.0,1800.8,2.84376]
[1745776457999,1.92308,1801.0,1800.9,2.4215]
[1745776459901,1.92308,1801.0,1800.9,3.5317]
[1745776460100,1.11018,1801.0,1800.9,3.5317]
[1745776460295,1.11012,1801.1,1800.9,3.5317]
[1745776460500,1.11012,1801.1,1801.0,3.49503]
[1745776460800,8.67226,1801.2,1801.0,3.49503]
[1745776461000,8.67226,1801.2,1801.1,2.4345]
[1745776461200,8.7614183,1801.2,1801.1,2.4345]
[1745776461406,10.4030183,1801.2,1801.1,2.4345]
[1745776462397,1.11007,1801.1,1801.0,1.649]
[1745776462597,2.75167,1801.1,1801.0,1.649]
[1745776464503,2.75167,1801.1,1801.0,3.3617]
[1745776465214,2.75167,1801.1,1801.0,2.5162]
[1745776466606,2.75167,1801.1,1801.0,1.7127]
[1745776466798,1.1102,1800.9,1800.8,3.2078]
[1745776467101,1.11032,1800.7,1800.6,6.5698]
[1745776467301,1.11028,1800.8,1800.6,7.68016]
[1745776467511,1.11028,1800.8,1800.7,1.6995]
[1745776468209,1.95998,1800.8,1800.7,1.6995]
[1745776473507,1.95998,1800.8,1800.7,2.80982]
[1745776473716,1.11028,1800.8,1800.7,2.80982]
[1745776474015,0.8034,1801.0,1800.9,1.1102]
[1745776474209,1.11012,1801.1,1800.9,8.04]
[1745776474412,1.11012,1801.1,1801.0,1.6879]
[1745776474709,1.95322,1801.1,1801.0,2.5001]
[1745776475407,3.66562,1801.1,1801.0,2.5001]
[1745776475910,2.5555,1801.1,1801.0,2.5001]
[1745776476921,2.5555,1801.1,1801.0,3.61023]
[1745776477419,4.3752,1801.2,1801.1,1.11007]
[1745776477720,6.87525796,1801.2,1801.1,2.72027]
[1745776477921,6.87525797,1801.2,1801.1,2.72027]
[1745776478216,6.7861,1801.2,1801.1,2.72027]
[1745776479522,3.2181,1801.2,1801.1,2.72027]
[1745776480916,3.2181,1801.2,1801.1,1.6102]
[1745776481117,3.2181,1801.2,1801.1,2.72027]
[1745776481836,4.32811,1801.2,1801.1,1.6102]
[1745776483425,3.2181,1801.2,1800.9,4.074]
[1745776483623,1.74186347,1801.1,1800.7,3.2078]
[1745776483826,1.1102,1800.9,1800.7,3.2078]
[1745776484025,2.5209,1800.8,1800.7,4.8405]
[1745776485018,3.63116,1800.8,1800.7,4.8405]
[1745776485217,2.5209,1800.8,1800.7,4.8405]
[1745776485413,3.63116,1800.8,1800.7,4.8405]
[1745776486927,1.11038,1800.6,1800.5,9.57]
[1745776487428,1.11038,1800.6,1800.5,5.848]
[1745776487625,2.71848,1800.6,1800.5,5.848]
[1745776487924,3.56138,1800.6,1800.5,5.848]
[1745776488526,4.076,1800.8,1800.5,5.848]
[1745776488720,9.2992,1800.8,1800.6,2.4033]
[1745776488926,1.11032,1800.7,1800.6,0.8078]
[1745776490527,2.76652,1800.7,1800.6,0.8078]
[1745776492631,1.11032,1800.7,1800.6,0.8078]
[1745776493337,2.69232,1800.7,1800.6,0.8078]
[1745776493528,1.582,1800.7,1800.6,0.8078]
[1745776493834,2.69232,1800.7,1800.6,0.8078]
[1745776496530,1.11038,1800.6,1800.5,6.6391]
[1745776496739,3.60188,1800.6,1800.5,6.6391]
[1745776497240,3.60188,1800.6,1800.5,10.3611]
[1745776498340,1.91788,1800.6,1800.5,6.6391]
[1745776502449,1.91788,1800.6,1800.5,0.7911]
[1745776502741,0.8075,1800.6,1800.3,3.2078]
[1745776502943,1.1105,1800.4,1800.3,3.2078]
[1745776503443,1.1105,1800.4,1800.2,8.64953]
[1745776503444,1.11054,1800.4,1800.2,8.64953]
[1745776503742,1.91277,1800.3,1800.2,8.64953]
[1745776503934,1.91277,1800.3,1800.2,11.85733]
[1745776504138,1.91277,1800.3,1800.2,15.57933]
[1745776504346,1.91277,1800.3,1800.2,10.4395]
[1745776504538,1.91277,1800.3,1800.2,9.57]
[1745776505541,1.91277,1800.3,1800.2,14.03593]
[1745776506932,0.8022,1800.3,1800.2,12.9253]
[1745776507132,0.8022,1800.3,1800.2,7.4874]
[1745776507342,3.51703,1800.3,1800.0,8.0405]
[1745776507542,3.51703,1800.3,1800.1,1.5861]
[1745776507543,4.37163,1800.3,1800.1,1.5861]
[1745776507741,1.6042,1800.2,1800.1,1.5861]
[1745776507944,2.71483,1800.2,1800.1,1.5861]
[1745776508140,1.6042,1800.2,1800.1,2.69679]
[1745776508641,1.6042,1800.2,1800.1,3.52579]
[1745776512050,2.71483,1800.2,1800.1,2.4151]
[1745776512447,2.71483,1800.2,1800.1,1.5861]
[1745776512748,2.71483,1800.2,1800.0,8.04053]
[1745776513050,2.4668,1800.1,1800.0,9.77733]
[1745776513240,2.4668,1800.1,1800.0,6.05533]
[1745776513944,2.4668,1800.1,1800.0,4.9446]
[1745776514143,3.57749,1800.1,1800.0,8.6666]
[1745776514747,2.4668,1800.1,1800.0,8.6666]
[1745776514949,3.57749,1800.1,1800.0,8.6666]
[1745776518353,3.57749,1800.1,1800.0,9.77735]
[1745776519056,3.57749,1800.1,1800.0,6.56955]
[1745776519254,3.57749,1800.1,1800.0,9.77735]
[1745776519865,2.4668,1800.1,1800.0,9.77735]
[1745776522968,1.96522,1800.3,1800.1,1.11063]
[1745776523165,4.52592,1800.3,1800.1,3.67993]
[1745776523872,4.52592,1800.3,1800.2,1.11063]
[1745776524065,4.52592,1800.3,1800.2,2.81343]
[1745776525366,4.52592,1800.3,1800.2,1.7028]
[1745776526575,3.4153,1800.3,1800.2,2.81343]
[1745776526870,2.5607,1800.3,1800.2,2.81343]
[1745776527078,7.88611,1800.8,1800.6,1.11036]
[1745776527273,0.89388586,1800.7,1800.6,1.11036]
[1745776527463,0.8047,1800.7,1800.6,1.11036]
[1745776528675,0.8047,1800.7,1800.6,2.83396]
[1745776529776,2.5391,1800.7,1800.6,2.83396]
[1745776529978,2.5391,1800.7,1800.6,1.7236]
[1745776532783,3.64942,1800.7,1800.6,1.7236]
[1745776543084,1.11038,1800.6,1800.5,0.7932]
[1745776543387,2.69818,1800.6,1800.5,0.7932]
[1745776543588,1.11044,1800.5,1800.4,2.3751]
[1745776543888,3.50154,1800.5,1800.4,2.3751]
[1745776544389,3.50154,1800.5,1800.4,6.0971]
[1745776545084,3.50154,1800.5,1800.4,3.722]
[1745776545289,1.1105,1800.4,1800.3,6.714]
[1745776545481,2.6986,1800.4,1800.3,6.714]
[1745776545682,2.6986,1800.4,1800.3,8.3842]
[1745776549389,2.6986,1800.4,1800.3,2.5362]
[1745776550086,2.6986,1800.4,1800.3,1.6702]
[1745776550291,1.11057,1800.3,1800.2,0.7905]
[1745776550888,1.11057,1800.3,1800.2,2.4606]
[1745776552494,1.89977,1800.3,1800.2,2.4606]
[1745776553299,3.62617,1800.3,1800.2,1.6701]
[1745776564500,1.11057,1800.3,1800.2,1.6701]
[1745776566303,2.73837,1800.3,1800.2,1.6701]
[1745776571005,1.11069,1800.1,1800.0,3.2078]
[1745776571201,4.40427,1800.3,1799.9,8.3477]
[1745776571202,1.11075,1800.0,1799.9,8.3477]
[1745776571398,2.78565,1800.0,1799.9,8.3477]
[1745776575808,2.78565,1800.0,1799.9,2.4997]
[1745776588220,1.11086,1799.9,1799.7,3.2078]
[1745776588420,1.11086,1799.9,1799.4,5.848]
[1745776588421,3.2078,1799.8,1799.4,5.848]
[1745776588721,1.11106,1799.5,1799.4,5.848]
[1745776588913,3.567,1799.6,1799.3,1.6147]
[1745776589113,1.11112,1799.4,1799.3,1.6147]
[1745776589524,2.76911,1799.5,1799.3,1.6147]
[1745776590429,1.658,1799.5,1799.3,2.72588]
[1745776590620,6.39764,1799.6,1799.3,2.72588]
[1745776590829,4.67804,1799.6,1799.4,2.82432]
[1745776591128,4.67804,1799.6,1799.5,3.3775]
[1745776592129,4.67804,1799.6,1799.5,7.0995]
[1745776594925,6.40664,1799.6,1799.5,7.0995]
[1745776597426,4.67804,1799.6,1799.5,7.0995]
[1745776600428,3.567,1799.6,1799.5,7.0995]
[1745776600633,4.678,1799.6,1799.5,7.0995]
[1745776600832,4.678,1799.6,1799.5,10.3073]
[1745776603335,3.567,1799.8,1799.5,11.41831]
[1745776603538,1.11094,1799.7,1799.6,1.6934]
[1745776607839,3.58294,1799.7,1799.6,1.6934]
[1745776608041,2.472,1799.7,1799.6,1.6934]
[1745776609940,3.567,1799.8,1799.6,2.80437]
[1745776610336,3.567,1799.8,1799.7,2.5326]
[1745776612837,3.567,1799.8,1799.7,3.64354]
[1745776613846,4.67787,1799.8,1799.7,2.5326]
[1745776614038,6.30707,1799.8,1799.7,2.5326]
[1745776614436,6.30707,1799.8,1799.7,1.7197]
[1745776625746,2.74007,1799.8,1799.7,1.7197]
[1745776626250,2.74007,1799.8,1799.7,5.4417]
[1745776632254,1.11087,1799.8,1799.7,5.4417]
[1745776633149,2.72347,1799.8,1799.7,5.4417]
[1745776640262,2.72347,1799.8,1799.7,1.7197]
[1745776641162,2.72347,1799.8,1799.7,5.4417]
[1745776644266,2.72347,1799.8,1799.7,1.7197]
[1745776645365,2.72347,1799.8,1799.7,5.4417]
[1745776656070,1.11087,1799.8,1799.7,5.4417]
[1745776659075,3.2078,1800.2,1799.7,5.4417]
[1745776659274,3.565,1800.0,1799.8,6.4218]
[1745776659571,4.67575,1800.0,1799.9,1.5871]
[1745776660169,4.67575,1800.0,1799.9,5.3091]
[1745776661276,6.32555,1800.0,1799.9,5.3091]
[1745776662083,6.32555,1800.0,1799.9,1.5871]
[1745776663673,1.11081,1799.9,1799.8,6.9298]
[1745776663873,3.59281,1799.9,1799.8,6.9298]
[1745776664173,1.11094,1799.7,1799.6,9.0558]
[1745776664370,1.11094,1799.7,1799.6,5.848]
[1745776665581,1.11094,1799.7,1799.6,7.558]
[1745776669879,1.11094,1799.7,1799.6,5.848]
[1745776670586,1.92134,1799.7,1799.6,5.848]
[1745776671779,1.111,1799.6,1799.5,3.722]
[1745776671980,3.75872633,1799.6,1799.5,3.722]
[1745776672180,5.42526633,1799.6,1799.1,3.2078]
[1745776672381,1.11129,1799.2,1799.1,3.2078]
[1745776673084,1.11122,1799.3,1799.1,3.2078]
[1745776673284,1.11122,1799.3,1799.2,3.3007]
[1745776674082,1.11122,1799.3,1799.2,7.0227]
[1745776674276,0.8344,1799.6,1799.2,8.13394]
[1745776674477,0.8344,1799.6,1799.3,1.5913]
[1745776674782,1.11114,1799.4,1799.3,1.5913]
[1745776675184,1.11109,1799.5,1799.3,6.42448]
[1745776675386,1.11109,1799.5,1799.4,2.4578]
[1745776676277,1.11109,1799.5,1799.4,6.1798]
[1745776680184,1.11104,1799.6,1799.4,7.29092]
[1745776680389,1.11104,1799.6,1799.5,5.6449]
[1745776680890,1.11104,1799.6,1799.5,6.75596]
[1745776681189,1.11104,1799.6,1799.5,10.47796]
[1745776681889,4.67494,1799.7,1799.5,10.47796]
[1745776682082,4.67494,1799.7,1799.6,2.414]
[1745776684885,4.67494,1799.7,1799.6,3.525]
[1745776685196,3.564,1799.7,1799.6,2.414]
[1745776685396,4.67494,1799.7,1799.6,2.414]
[1745776685595,6.29834,1799.7,1799.6,2.414]
[1745776685895,5.1874,1799.7,1799.6,2.414]
[1745776687097,5.1874,1799.7,1799.6,3.525]
[1745776687397,5.1874,1799.7,1799.6,2.414]
[1745776687693,1.6234,1799.7,1799.6,1.6098]
[1745776688696,1.6234,1799.7,1799.6,2.7208]
[1745776692000,1.6234,1799.7,1799.6,1.6098]
[1745776693202,1.6234,1799.7,1799.6,2.4795]
[1745776694700,0.8065,1799.8,1799.6,2.4795]
[1745776694903,0.8065,1799.8,1799.7,1.7115]
[1745776695204,1.91737,1799.8,1799.7,1.7115]
[1745776695801,3.63967,1799.8,1799.7,1.7115]
[1745776698803,3.63967,1799.8,1799.5,4.0244]
[1745776698804,2.5288,1799.8,1799.5,4.0244]
[1745776699001,1.6042,1799.7,1799.5,4.0244]
[1745776699202,1.6042,1799.7,1799.5,7.7464]
[1745776699503,1.111,1799.6,1799.5,7.7464]
[1745776699801,1.111,1799.6,1799.5,8.6096]